[Event "Early-Titled-Tuesday-Blitz-January-23-2024"]
[Site "Chess.com"]
[Date "2024.01.23"]
[Round "5"]
[White "masnyszachistaaa"]
[Black "MaxLeto"]
[Result "1-0"]
[WhiteElo "2521"]
[BlackElo "2297"]
[TimeControl "180+1"]
[EndTime "8:56:29 PST"]
[Termination "masnyszachistaaa won by checkmate"]

1. c4 {[%clk 0:03:00.9]} 1... e5 {[%clk 0:02:59.3]} 2. Nc3 {[%clk 0:02:58.8]}
2... Nf6 {[%clk 0:02:58.8]} 3. Nf3 {[%clk 0:02:58]} 3... Nc6 {[%clk 0:02:58.6]}
4. e3 {[%clk 0:02:54.4]} 4... Bb4 {[%clk 0:02:58]} 5. Qc2 {[%clk 0:02:47.9]}
5... O-O {[%clk 0:02:56.5]} 6. Nd5 {[%clk 0:02:43.8]} 6... Re8 {[%clk
0:02:45.2]} 7. Qf5 {[%clk 0:02:40.8]} 7... d6 {[%clk 0:02:32]} 8. Nxf6+ {[%clk
0:02:38.7]} 8... Qxf6 {[%clk 0:02:32.9]} 9. Qxf6 {[%clk 0:02:38.8]} 9... gxf6
{[%clk 0:02:33.8]} 10. a3 {[%clk 0:02:39.1]} 10... Bc5 {[%clk 0:02:28.9]} 11. b4
{[%clk 0:02:31.5]} 11... Bb6 {[%clk 0:02:29.2]} 12. Bb2 {[%clk 0:02:30.6]} 12...
a5 {[%clk 0:02:26.7]} 13. b5 {[%clk 0:02:24.1]} 13... Nd8 {[%clk 0:02:23.7]} 14.
Be2 {[%clk 0:02:17]} 14... Ne6 {[%clk 0:02:13.2]} 15. O-O {[%clk 0:02:03.7]}
15... Nc5 {[%clk 0:01:55.1]} 16. a4 {[%clk 0:01:59.5]} 16... Bg4 {[%clk
0:01:46.7]} 17. Nd4 {[%clk 0:01:33.6]} 17... Be6 {[%clk 0:01:07.9]} 18. Nxe6
{[%clk 0:01:29.7]} 18... fxe6 {[%clk 0:01:08.8]} 19. d3 {[%clk 0:01:26.7]} 19...
f5 {[%clk 0:01:05.2]} 20. d4 {[%clk 0:01:19.3]} 20... exd4 {[%clk 0:01:00.8]}
21. exd4 {[%clk 0:01:20.2]} 21... Ne4 {[%clk 0:00:54.1]} 22. Rfd1 {[%clk
0:01:18.5]} 22... Rab8 {[%clk 0:00:47.7]} 23. Bf3 {[%clk 0:01:16.9]} 23... Ng5
{[%clk 0:00:47.9]} 24. Be2 {[%clk 0:01:15.6]} 24... Ne4 {[%clk 0:00:46.6]} 25.
Rac1 {[%clk 0:01:08.9]} 25... Re7 {[%clk 0:00:45.2]} 26. h4 {[%clk 0:01:00.8]}
26... c6 {[%clk 0:00:44]} 27. Bf3 {[%clk 0:00:59.2]} 27... d5 {[%clk 0:00:42.6]}
28. Bxe4 {[%clk 0:00:48.2]} 28... fxe4 {[%clk 0:00:39.6]} 29. c5 {[%clk
0:00:46.5]} 29... Bc7 {[%clk 0:00:39.1]} 30. Bc3 {[%clk 0:00:46.7]} 30... b6
{[%clk 0:00:21.7]} 31. Rb1 {[%clk 0:00:39.8]} 31... cxb5 {[%clk 0:00:16.5]} 32.
axb5 {[%clk 0:00:36.8]} 32... Kf7 {[%clk 0:00:09.5]} 33. Bd2 {[%clk 0:00:33.9]}
33... Ke8 {[%clk 0:00:07.4]} 34. Bg5 {[%clk 0:00:31]} 34... Rf7 {[%clk
0:00:06.8]} 35. c6 {[%clk 0:00:29.1]} 35... Bd6 {[%clk 0:00:03.8]} 36. Ra1
{[%clk 0:00:26.1]} 36... Rc8 {[%clk 0:00:03.8]} 37. Re1 {[%clk 0:00:23.3]} 37...
Kf8 {[%clk 0:00:03.3]} 38. Re3 {[%clk 0:00:21]} 38... Kg7 {[%clk 0:00:03.1]} 39.
f3 {[%clk 0:00:18.9]} 39... h6 {[%clk 0:00:03.4]} 40. Bxh6+ {[%clk 0:00:11.2]}
40... Kxh6 {[%clk 0:00:04.3]} 41. fxe4 {[%clk 0:00:11.4]} 41... Bf4 {[%clk
0:00:04.3]} 42. Re2 {[%clk 0:00:10.2]} 42... dxe4 {[%clk 0:00:03.8]} 43. Rxe4
{[%clk 0:00:11.1]} 43... Rf6 {[%clk 0:00:04.2]} 44. Rae1 {[%clk 0:00:10.4]}
44... Re8 {[%clk 0:00:03.5]} 45. d5 {[%clk 0:00:10.4]} 45... Bd6 {[%clk
0:00:02.5]} 46. dxe6 {[%clk 0:00:10.3]} 46... Bc5+ {[%clk 0:00:03]} 47. Kh2
{[%clk 0:00:10.8]} 47... Re7 {[%clk 0:00:03.5]} 48. Kh3 {[%clk 0:00:10.9]} 48...
Rf5 {[%clk 0:00:03.1]} 49. g4 {[%clk 0:00:10.6]} 49... Rf3+ {[%clk 0:00:03.5]}
50. Kg2 {[%clk 0:00:10.9]} 50... Rf2+ {[%clk 0:00:04]} 51. Kg3 {[%clk
0:00:11.5]} 51... Ra2 {[%clk 0:00:03.9]} 52. c7 {[%clk 0:00:05.6]} 52... Ra3+
{[%clk 0:00:03.6]} 53. Kg2 {[%clk 0:00:04.8]} 53... Bd6 {[%clk 0:00:03.5]} 54.
c8=Q {[%clk 0:00:04.8]} 54... Ra2+ {[%clk 0:00:03]} 55. R1e2 {[%clk 0:00:05.1]}
55... Rxe2+ {[%clk 0:00:01.7]} 56. Rxe2 {[%clk 0:00:06]} 56... Bc5 {[%clk
0:00:01.4]} 57. Qh8+ {[%clk 0:00:05.8]} 57... Kg6 {[%clk 0:00:02]} 58. Qg8+
{[%clk 0:00:06.1]} 58... Kh6 {[%clk 0:00:02.5]} 59. Qg5+ {[%clk 0:00:06.2]}
59... Kh7 {[%clk 0:00:02.6]} 60. Qf5+ {[%clk 0:00:06.8]} 60... Kg7 {[%clk
0:00:02.7]} 61. g5 {[%clk 0:00:07.3]} 61... Rc7 {[%clk 0:00:02.4]} 62. h5 {[%clk
0:00:07.3]} 62... Re7 {[%clk 0:00:02.9]} 63. h6+ {[%clk 0:00:07.7]} 63... Kg8
{[%clk 0:00:03.2]} 64. g6 {[%clk 0:00:07.9]} 64... Kh8 {[%clk 0:00:03.6]} 65.
Qf6+ {[%clk 0:00:07.6]} 65... Kg8 {[%clk 0:00:03.3]} 66. h7+ {[%clk 0:00:08.1]}
66... Rxh7 {[%clk 0:00:04.1]} 67. gxh7+ {[%clk 0:00:09]} 67... Kxh7 {[%clk
0:00:04.7]} 68. e7 {[%clk 0:00:09.7]} 68... Be3 {[%clk 0:00:04.3]} 69. Rxe3
{[%clk 0:00:09.2]} 69... Kg8 {[%clk 0:00:04.2]} 70. Rh3 {[%clk 0:00:09.2]} 70...
a4 {[%clk 0:00:05.1]} 71. Rh8# {[%clk 0:00:10.1]} 1-0

[Event "Early-Titled-Tuesday-Blitz-January-23-2024"]
[Site "Chess.com"]
[Date "2024.01.23"]
[Round "5"]
[White "Roosters19"]
[Black "azikom"]
[Result "0-1"]
[WhiteElo "2322"]
[BlackElo "2689"]
[TimeControl "180+1"]
[EndTime "8:56:30 PST"]
[Termination "azikom won on time"]

1. d4 {[%clk 0:03:00.9]} 1... d5 {[%clk 0:02:58.8]} 2. Nf3 {[%clk 0:03:00.4]}
2... e6 {[%clk 0:02:58.9]} 3. Bf4 {[%clk 0:02:59.4]} 3... c5 {[%clk 0:02:58.5]}
4. e3 {[%clk 0:02:58.8]} 4... Bd6 {[%clk 0:02:58.4]} 5. Bg3 {[%clk 0:02:58.5]}
5... Ne7 {[%clk 0:02:57.2]} 6. Nbd2 {[%clk 0:02:57.3]} 6... Nbc6 {[%clk
0:02:56.5]} 7. c3 {[%clk 0:02:56.9]} 7... Nf5 {[%clk 0:02:55.6]} 8. Bd3 {[%clk
0:02:56.2]} 8... Nxg3 {[%clk 0:02:54.8]} 9. hxg3 {[%clk 0:02:57.1]} 9... g6
{[%clk 0:02:49.5]} 10. Qe2 {[%clk 0:02:53.3]} 10... Qe7 {[%clk 0:02:46]} 11.
dxc5 {[%clk 0:02:49]} 11... Bxc5 {[%clk 0:02:45.5]} 12. e4 {[%clk 0:02:49.7]}
12... Bd7 {[%clk 0:02:40.9]} 13. exd5 {[%clk 0:02:47.9]} 13... exd5 {[%clk
0:02:40.5]} 14. Qxe7+ {[%clk 0:02:47.8]} 14... Kxe7 {[%clk 0:02:38.2]} 15. O-O
{[%clk 0:02:44.3]} 15... h5 {[%clk 0:02:37.4]} 16. Nb3 {[%clk 0:02:40.7]} 16...
Bb6 {[%clk 0:02:36.6]} 17. Rfe1+ {[%clk 0:02:39.9]} 17... Kf6 {[%clk 0:02:36.2]}
18. Bb5 {[%clk 0:02:36.9]} 18... Rad8 {[%clk 0:02:32.4]} 19. Rad1 {[%clk
0:02:34.8]} 19... Bg4 {[%clk 0:02:31.4]} 20. Rd3 {[%clk 0:02:27.7]} 20... a6
{[%clk 0:02:23.8]} 21. Ba4 {[%clk 0:02:19]} 21... Rd6 {[%clk 0:01:38.4]} 22.
Nbd4 {[%clk 0:02:11.6]} 22... Nxd4 {[%clk 0:01:26.1]} 23. Nxd4 {[%clk
0:02:10.1]} 23... Ba7 {[%clk 0:01:19]} 24. Bd1 {[%clk 0:02:03.3]} 24... Bc8
{[%clk 0:01:15.2]} 25. Rf3+ {[%clk 0:01:57.5]} 25... Kg7 {[%clk 0:01:12.3]} 26.
Re7 {[%clk 0:01:57.3]} 26... Rf6 {[%clk 0:01:07.5]} 27. Ree3 {[%clk 0:01:31.8]}
27... Bxd4 {[%clk 0:00:53.8]} 28. cxd4 {[%clk 0:01:28.6]} 28... Bf5 {[%clk
0:00:51.5]} 29. Re7 {[%clk 0:01:04.3]} 29... b5 {[%clk 0:00:47.2]} 30. Bb3
{[%clk 0:01:03.6]} 30... Rd8 {[%clk 0:00:43.9]} 31. Rc7 {[%clk 0:00:58]} 31...
Rdd6 {[%clk 0:00:41.3]} 32. Re3 {[%clk 0:00:54.9]} 32... Be6 {[%clk 0:00:38.5]}
33. Re5 {[%clk 0:00:50]} 33... Kf8 {[%clk 0:00:30.1]} 34. Rc5 {[%clk 0:00:47.7]}
34... Bg4 {[%clk 0:00:12.3]} 35. f3 {[%clk 0:00:45.5]} 35... Bf5 {[%clk
0:00:09.5]} 36. Kf2 {[%clk 0:00:41.6]} 36... Be6 {[%clk 0:00:07.3]} 37. Ke3
{[%clk 0:00:38.9]} 37... Kg7 {[%clk 0:00:07.1]} 38. f4 {[%clk 0:00:38]} 38...
Bf5 {[%clk 0:00:05]} 39. Bxd5 {[%clk 0:00:37.4]} 39... Bd7 {[%clk 0:00:04.4]}
40. Bb3 {[%clk 0:00:36.9]} 40... Rf5 {[%clk 0:00:03.3]} 41. Rxf5 {[%clk
0:00:36.1]} 41... Bxf5 {[%clk 0:00:03.3]} 42. Rc7 {[%clk 0:00:36]} 42... Be6
{[%clk 0:00:01.2]} 43. Bxe6 {[%clk 0:00:34.6]} 43... Rxe6+ {[%clk 0:00:02.1]}
44. Kd3 {[%clk 0:00:34.7]} 44... Rd6 {[%clk 0:00:02.5]} 45. Rc5 {[%clk
0:00:33.2]} 45... Kf6 {[%clk 0:00:02.4]} 46. Ke4 {[%clk 0:00:32.8]} 46... Re6+
{[%clk 0:00:02.4]} 47. Kd3 {[%clk 0:00:27.6]} 47... Re1 {[%clk 0:00:02.3]} 48.
Rc6+ {[%clk 0:00:24.2]} 48... Kf5 {[%clk 0:00:02.4]} 49. Rxa6 {[%clk 0:00:23.6]}
49... Rg1 {[%clk 0:00:02.7]} 50. Ra5 {[%clk 0:00:22]} 50... Rxg2 {[%clk
0:00:02.3]} 51. Rxb5+ {[%clk 0:00:22.5]} 51... Kg4 {[%clk 0:00:02.3]} 52. d5
{[%clk 0:00:21.6]} 52... Rxg3+ {[%clk 0:00:02.3]} 53. Kc4 {[%clk 0:00:21.8]}
53... Rg1 {[%clk 0:00:02.3]} 54. d6 {[%clk 0:00:21.4]} 54... Rc1+ {[%clk
0:00:02.6]} 55. Kd4 {[%clk 0:00:19.5]} 55... Rd1+ {[%clk 0:00:03]} 56. Kc5
{[%clk 0:00:19.7]} 56... h4 {[%clk 0:00:03.1]} 57. Rb4 {[%clk 0:00:17.5]} 57...
h3 {[%clk 0:00:02.9]} 58. f5+ {[%clk 0:00:17.8]} 58... Kxf5 {[%clk 0:00:02.5]}
59. Rd4 {[%clk 0:00:18.3]} 59... Rxd4 {[%clk 0:00:02.3]} 60. Kxd4 {[%clk
0:00:18.8]} 60... h2 {[%clk 0:00:03.2]} 61. d7 {[%clk 0:00:18.1]} 61... h1=Q
{[%clk 0:00:03.5]} 0-1

[Event "Early-Titled-Tuesday-Blitz-January-23-2024"]
[Site "Chess.com"]
[Date "2024.01.23"]
[Round "5"]
[White "Natalya_Buksa"]
[Black "vugarrasulov"]
[Result "1-0"]
[WhiteElo "2598"]
[BlackElo "2927"]
[TimeControl "180+1"]
[EndTime "8:56:32 PST"]
[Termination "Natalya_Buksa won by resignation"]

1. d4 {[%clk 0:02:59.7]} 1... Nf6 {[%clk 0:02:59.8]} 2. Nc3 {[%clk 0:02:59.7]}
2... e6 {[%clk 0:02:58.7]} 3. a3 {[%clk 0:02:55.2]} 3... d5 {[%clk 0:02:57.7]}
4. Bf4 {[%clk 0:02:54.5]} 4... c5 {[%clk 0:02:51.6]} 5. e3 {[%clk 0:02:54.3]}
5... a6 {[%clk 0:02:52.1]} 6. Nf3 {[%clk 0:02:54.2]} 6... Nc6 {[%clk 0:02:51.1]}
7. Ne5 {[%clk 0:02:53.6]} 7... Bd6 {[%clk 0:02:47.5]} 8. Nxc6 {[%clk 0:02:32.3]}
8... bxc6 {[%clk 0:02:48.4]} 9. Bxd6 {[%clk 0:02:32.2]} 9... Qxd6 {[%clk
0:02:49.3]} 10. dxc5 {[%clk 0:02:32.6]} 10... Qxc5 {[%clk 0:02:50.2]} 11. Na4
{[%clk 0:02:32.7]} 11... Qa5+ {[%clk 0:02:42]} 12. c3 {[%clk 0:02:32.7]} 12...
O-O {[%clk 0:02:40.5]} 13. b4 {[%clk 0:02:32.8]} 13... Qc7 {[%clk 0:02:40.5]}
14. Be2 {[%clk 0:02:25.8]} 14... e5 {[%clk 0:02:38.9]} 15. Nc5 {[%clk
0:02:23.2]} 15... Nd7 {[%clk 0:02:30.6]} 16. Nxd7 {[%clk 0:02:17.1]} 16... Bxd7
{[%clk 0:02:31.5]} 17. c4 {[%clk 0:02:15.9]} 17... Be6 {[%clk 0:02:24.8]} 18.
O-O {[%clk 0:02:13.6]} 18... Rfd8 {[%clk 0:02:21.1]} 19. Qc2 {[%clk 0:02:10.2]}
19... d4 {[%clk 0:02:19.3]} 20. exd4 {[%clk 0:02:09.5]} 20... Rxd4 {[%clk
0:02:17.7]} 21. Rfd1 {[%clk 0:02:09.5]} 21... c5 {[%clk 0:02:16]} 22. Rxd4
{[%clk 0:02:00]} 22... exd4 {[%clk 0:02:13.9]} 23. Bd3 {[%clk 0:01:59.9]} 23...
g6 {[%clk 0:02:13.6]} 24. h3 {[%clk 0:01:58.7]} 24... Rc8 {[%clk 0:02:06]} 25.
Rc1 {[%clk 0:01:57.8]} 25... Qf4 {[%clk 0:02:01.5]} 26. Rb1 {[%clk 0:01:52.8]}
26... Kg7 {[%clk 0:01:59.3]} 27. Qe2 {[%clk 0:01:47.4]} 27... Qd6 {[%clk
0:01:51.7]} 28. Qc2 {[%clk 0:01:34.2]} 28... h5 {[%clk 0:01:43.5]} 29. Qe2
{[%clk 0:01:21]} 29... Re8 {[%clk 0:01:40.5]} 30. Qc2 {[%clk 0:01:20.3]} 30...
Bd7 {[%clk 0:01:39.3]} 31. Qd2 {[%clk 0:01:17.1]} 31... Bc6 {[%clk 0:01:38.4]}
32. b5 {[%clk 0:01:15.1]} 32... axb5 {[%clk 0:01:38.1]} 33. cxb5 {[%clk
0:01:15.1]} 33... Bd5 {[%clk 0:01:38.7]} 34. Rc1 {[%clk 0:01:09.1]} 34... Rc8
{[%clk 0:01:34.2]} 35. Bc4 {[%clk 0:01:08.4]} 35... Qe6 {[%clk 0:01:25.8]} 36.
Qd3 {[%clk 0:01:00.9]} 36... Ra8 {[%clk 0:01:19.7]} 37. Bxd5 {[%clk 0:00:44]}
37... Qxd5 {[%clk 0:01:20.6]} 38. b6 {[%clk 0:00:44.2]} 38... Rb8 {[%clk
0:01:03.5]} 39. Qb5 {[%clk 0:00:44.1]} 39... d3 {[%clk 0:01:03.8]} 40. Rxc5
{[%clk 0:00:44.2]} 40... Qd4 {[%clk 0:01:03]} 41. Rd5 {[%clk 0:00:43.1]} 41...
Qxb6 {[%clk 0:00:52.2]} 42. Qxb6 {[%clk 0:00:42]} 42... Rxb6 {[%clk 0:00:53.1]}
43. Rxd3 {[%clk 0:00:42.1]} 43... Rb1+ {[%clk 0:00:53.8]} 44. Kh2 {[%clk
0:00:42.1]} 44... Ra1 {[%clk 0:00:54.7]} 45. Kg3 {[%clk 0:00:42]} 45... Ra2
{[%clk 0:00:54.9]} 46. h4 {[%clk 0:00:41.3]} 46... Kf6 {[%clk 0:00:54.7]} 47.
Kf3 {[%clk 0:00:42]} 47... Ke5 {[%clk 0:00:53.1]} 48. Ke3 {[%clk 0:00:42]} 48...
Ra1 {[%clk 0:00:51.7]} 49. g3 {[%clk 0:00:42.3]} 49... Re1+ {[%clk 0:00:51.4]}
50. Kd2 {[%clk 0:00:42]} 50... Ra1 {[%clk 0:00:51.5]} 51. Rf3 {[%clk 0:00:40]}
51... f5 {[%clk 0:00:50]} 52. Kc2 {[%clk 0:00:39.6]} 52... Ke4 {[%clk
0:00:46.5]} 53. Rf4+ {[%clk 0:00:39.3]} 53... Ke5 {[%clk 0:00:45.7]} 54. Kb2
{[%clk 0:00:36.1]} 54... Rd1 {[%clk 0:00:43.7]} 55. a4 {[%clk 0:00:36.4]} 55...
Kd5 {[%clk 0:00:44.2]} 56. a5 {[%clk 0:00:34.6]} 56... Kc5 {[%clk 0:00:44.1]}
57. Ra4 {[%clk 0:00:13.7]} 57... Kb5 {[%clk 0:00:43.9]} 58. Ra3 {[%clk
0:00:13.4]} 58... Rd2+ {[%clk 0:00:33.5]} 59. Kc1 {[%clk 0:00:13]} 59... Rd6
{[%clk 0:00:30.7]} 60. a6 {[%clk 0:00:11.6]} 60... Rxa6 {[%clk 0:00:27.5]} 61.
Rxa6 {[%clk 0:00:11.5]} 61... Kxa6 {[%clk 0:00:28.4]} 62. Kd2 {[%clk 0:00:11.7]}
62... Kb5 {[%clk 0:00:29]} 63. Ke3 {[%clk 0:00:12.3]} 63... Kc4 {[%clk
0:00:25.7]} 64. Kf4 {[%clk 0:00:12.3]} 64... Kd3 {[%clk 0:00:26.1]} 65. Kg5
{[%clk 0:00:12.3]} 65... Ke2 {[%clk 0:00:26.5]} 66. f4 {[%clk 0:00:10.3]} 66...
Kf3 {[%clk 0:00:25.1]} 67. Kxg6 {[%clk 0:00:10.8]} 67... Kxg3 {[%clk 0:00:25.8]}
68. Kg5 {[%clk 0:00:11.4]} 68... Kg2 {[%clk 0:00:19.8]} 69. Kxf5 {[%clk
0:00:11.5]} 69... Kf3 {[%clk 0:00:20]} 70. Kg5 {[%clk 0:00:11.7]} 1-0

[Event "Early-Titled-Tuesday-Blitz-January-23-2024"]
[Site "Chess.com"]
[Date "2024.01.23"]
[Round "5"]
[White "xakevicius91"]
[Black "WindWhistler11"]
[Result "0-1"]
[WhiteElo "2568"]
[BlackElo "2466"]
[TimeControl "180+1"]
[EndTime "8:56:35 PST"]
[Termination "WindWhistler11 won by resignation"]

1. e4 {[%clk 0:02:56.1]} 1... e6 {[%clk 0:02:59.9]} 2. d4 {[%clk 0:02:55.8]}
2... d5 {[%clk 0:03:00.6]} 3. Bd3 {[%clk 0:02:55.9]} 3... Nc6 {[%clk 0:02:59.4]}
4. Nf3 {[%clk 0:02:55.4]} 4... Nb4 {[%clk 0:02:55.7]} 5. c3 {[%clk 0:02:50.2]}
5... Nxd3+ {[%clk 0:02:54.8]} 6. Qxd3 {[%clk 0:02:51.1]} 6... Nf6 {[%clk
0:02:54]} 7. e5 {[%clk 0:02:50.5]} 7... Nd7 {[%clk 0:02:54.5]} 8. O-O {[%clk
0:02:51.1]} 8... c5 {[%clk 0:02:51.8]} 9. h4 {[%clk 0:02:48.5]} 9... h6 {[%clk
0:02:44.6]} 10. Rd1 {[%clk 0:02:36.9]} 10... b6 {[%clk 0:02:38.7]} 11. Nbd2
{[%clk 0:02:36.4]} 11... Be7 {[%clk 0:02:37.4]} 12. h5 {[%clk 0:02:35.3]} 12...
a5 {[%clk 0:02:34.1]} 13. Nf1 {[%clk 0:02:35]} 13... Ba6 {[%clk 0:02:33.7]} 14.
Qc2 {[%clk 0:02:32.8]} 14... cxd4 {[%clk 0:02:29.7]} 15. cxd4 {[%clk 0:02:30]}
15... Rc8 {[%clk 0:02:29.9]} 16. Qd2 {[%clk 0:02:24.2]} 16... Qc7 {[%clk
0:02:21.3]} 17. Ng3 {[%clk 0:02:17.6]} 17... O-O {[%clk 0:02:08.7]} 18. b3
{[%clk 0:02:13.9]} 18... Qc2 {[%clk 0:02:04.7]} 19. Bb2 {[%clk 0:02:10.4]} 19...
Bb4 {[%clk 0:02:03.1]} 20. Qxc2 {[%clk 0:02:07.1]} 20... Rxc2 {[%clk 0:02:03.4]}
21. Rab1 {[%clk 0:02:07.1]} 21... Rfc8 {[%clk 0:01:55.6]} 22. Rdc1 {[%clk
0:02:05.1]} 22... Bd3 {[%clk 0:01:52.1]} 23. Rxc2 {[%clk 0:02:04.1]} 23... Rxc2
{[%clk 0:01:53]} 24. a3 {[%clk 0:01:47.8]} 24... Be7 {[%clk 0:01:47.8]} 25. Ne1
{[%clk 0:01:42.2]} 25... Rd2 {[%clk 0:01:32.9]} 26. Nxd3 {[%clk 0:01:32]} 26...
Rxd3 {[%clk 0:01:30.8]} 27. Ne2 {[%clk 0:01:21.1]} 27... Rxb3 {[%clk 0:01:28.4]}
28. Nc1 {[%clk 0:01:21.4]} 28... Rb5 {[%clk 0:01:24.5]} 29. a4 {[%clk
0:01:03.9]} 29... Rb4 {[%clk 0:01:24.3]} 30. Nd3 {[%clk 0:01:04.4]} 30... Rb3
{[%clk 0:01:20.9]} 31. Rd1 {[%clk 0:01:04.6]} 31... Ba3 {[%clk 0:01:16.1]} 32.
Bxa3 {[%clk 0:01:04.4]} 32... Rxa3 {[%clk 0:01:17]} 33. Nb2 {[%clk 0:01:02]}
33... Ra2 {[%clk 0:01:16.1]} 34. Rb1 {[%clk 0:01:00.8]} 34... Kf8 {[%clk
0:01:08.2]} 35. Kf1 {[%clk 0:01:00.2]} 35... Ke7 {[%clk 0:01:07.6]} 36. Ke2
{[%clk 0:01:00.9]} 36... Kd8 {[%clk 0:01:07.9]} 37. Kd3 {[%clk 0:01:01.5]} 37...
Kc7 {[%clk 0:01:08]} 38. Nd1 {[%clk 0:01:01.8]} 38... Nb8 {[%clk 0:01:04.4]} 39.
Nc3 {[%clk 0:00:56.5]} 39... Rxf2 {[%clk 0:01:02.2]} 40. Nb5+ {[%clk 0:00:55.8]}
40... Kd7 {[%clk 0:01:00.7]} 41. Rc1 {[%clk 0:00:54.6]} 41... Nc6 {[%clk
0:01:00.4]} 42. Nd6 {[%clk 0:00:52.5]} 42... Rxg2 {[%clk 0:00:54.6]} 43. Nxf7
{[%clk 0:00:44.3]} 43... Rg3+ {[%clk 0:00:55.1]} 44. Kd2 {[%clk 0:00:42.2]}
44... Nxd4 {[%clk 0:00:55.7]} 45. Rb1 {[%clk 0:00:39.5]} 45... Ke7 {[%clk
0:00:48.1]} 46. Nd6 {[%clk 0:00:38.7]} 46... Nf3+ {[%clk 0:00:48.4]} 47. Ke2
{[%clk 0:00:37.2]} 47... Nxe5 {[%clk 0:00:47.6]} 48. Nc8+ {[%clk 0:00:37.9]}
48... Kf6 {[%clk 0:00:47.3]} 49. Nxb6 {[%clk 0:00:38.8]} 49... Nc6 {[%clk
0:00:41]} 50. Nd7+ {[%clk 0:00:37.7]} 50... Kg5 {[%clk 0:00:39.9]} 51. Rb6
{[%clk 0:00:36.2]} 51... Nd4+ {[%clk 0:00:39.8]} 52. Kf2 {[%clk 0:00:36.5]}
52... Rf3+ {[%clk 0:00:39.6]} 53. Kg2 {[%clk 0:00:37]} 53... Rf4 {[%clk
0:00:38.3]} 54. Ne5 {[%clk 0:00:36.3]} 54... Kxh5 {[%clk 0:00:35.7]} 55. Rb7
{[%clk 0:00:36.7]} 55... Rf5 {[%clk 0:00:34.2]} 56. Nd3 {[%clk 0:00:33.9]} 56...
g5 {[%clk 0:00:33]} 57. Ra7 {[%clk 0:00:34.2]} 57... e5 {[%clk 0:00:29.9]} 58.
Rxa5 {[%clk 0:00:32.8]} 58... e4 {[%clk 0:00:30.6]} 59. Nf2 {[%clk 0:00:33.2]}
59... e3 {[%clk 0:00:29.6]} 60. Nd3 {[%clk 0:00:33.6]} 60... Nb3 {[%clk
0:00:25.5]} 61. Ra8 {[%clk 0:00:29.7]} 61... d4 {[%clk 0:00:22.3]} 62. Re8
{[%clk 0:00:26.7]} 62... Ra5 {[%clk 0:00:20.7]} 63. Ne5 {[%clk 0:00:18.7]} 63...
Rxa4 {[%clk 0:00:18]} 64. Kg3 {[%clk 0:00:19.1]} 64... Nd2 {[%clk 0:00:17.3]}
65. Nf7 {[%clk 0:00:18.8]} 65... d3 {[%clk 0:00:16.1]} 66. Re6 {[%clk
0:00:18.9]} 66... Ne4+ {[%clk 0:00:16.2]} 67. Kf3 {[%clk 0:00:17.8]} 67... g4+
{[%clk 0:00:14]} 68. Kxe3 {[%clk 0:00:14]} 68... g3 {[%clk 0:00:11.1]} 69. Rxh6+
{[%clk 0:00:12.3]} 69... Kg4 {[%clk 0:00:11.7]} 70. Ne5+ {[%clk 0:00:12.2]}
70... Kf5 {[%clk 0:00:11.6]} 71. Nxd3 {[%clk 0:00:11.6]} 71... g2 {[%clk
0:00:11.4]} 72. Rh5+ {[%clk 0:00:04.1]} 72... Kg4 {[%clk 0:00:11.6]} 73. Rg5+
{[%clk 0:00:01.5]} 73... Nxg5 {[%clk 0:00:11.2]} 0-1